Cogmind - Beta 16 @@@ ROGUE MODE // 2026.01.02 @ 22:56:24 Player: parasect Result: Escaped! Performance ------------- Evolutions (9) 4500 Regions Visited (15) 3000 Robots Destroyed (82) 410 Value Destroyed (2792) 2792 Prototype IDs (33) 660 Alien Tech Used (0) 0 Bonus (4744) 4744 TOTAL SCORE: 16106 Bonus ------- High Alert Combat Kills 44 Entered Garrisons 400 Used RIF Installer 500 Entered DSFs 500 Aligned with FarCom 300 Win 3000 Cogmind --------- Core Integrity 1520/1600 Matter 216/300 Energy 11/100 System Corruption 6% Temperature Cool (1) Movement Flying (305) Ox4 Location To Epsilon Eridani Parts ------- > --- POWER (2) -------- (None) > --- PROPULSION (8) --- Shield Leg Cooled VTOL Module > --- UTILITY (13) ----- Experimental Heat Sink Improved Coolant Injector Improved Transmission Jammer ECM Suite Improved Medium Armor Plating Graphene Brace Hacking Suite Improved Hacking Suite Improved Hacking Suite Improved Hacking Suite System Shield Improved System Shield Improved Corruption Screen > --- WEAPON (2) ------- HERF Cannon Scythe > --- INVENTORY (5) ---- Improved Fusion Compressor Improved Recalibrator Peak State ------------ > --- POWER ------------ Backup Power VII Light Quantum Reactor > --- PROPULSION ------- Shield Leg Cesium-ion Thruster Xenon Bombardment Thruster Cooled VTOL Module Cooled VTOL Module Advanced Surge Thruster Field Propulsion Array > --- UTILITY ---------- Improved Coolant Injector Improved Transmission Jammer ECM Suite Improved Propulsion Shielding Improved Medium Armor Plating Graphene Brace Hacking Suite Hacking Suite Improved Hacking Suite Improved Hacking Suite Improved Hacking Suite System Shield Improved System Shield > --- WEAPON ----------- Advanced Datajack Scythe > --- INVENTORY -------- Improved Fusion Compressor Experimental Heat Sink Improved Light Armor Plating Improved Corruption Screen Improved Recalibrator [Rating: 129] Favorites ----------- Power Light Nuclear Core Engine Light Ion Engine Power Core Light Nuclear Core Reactor Light Quantum Reactor Propulsion Light Treads Treads Light Treads Leg Aluminum Leg Flight Unit Cooled VTOL Module Utility Hacking Suite Device Improved Terrain Scanner Processor Improved Signal Interpreter Hackware Hacking Suite Protection Improved Medium Armor Plating Weapon Medium Laser Energy Gun Medium Laser Energy Cannon HERF Cannon Ballistic Gun Gauss Rifle Launcher Mini Grenade Launcher Impact Weapon Hammer Slashing Weapon Scythe Special Melee Weapon Advanced Datajack Build | -11 -10 -10 -10 -9 -8 -8 -7 -6 -5 -4 -3 -2 -2 -2 -1 ------- Run | Yrd Mat Min Exi Min Mat Gar Fac Fac Fac Fac Res Res DSF Gar Acc Slots Evolved 18 | . . . . . 4 . 2 2 2 2 2 2 . . 2 Power 1 | . . . . . . . . 1 . . . . . . . Propulsion 6 | . . . . . 2 . . . 1 1 1 1 . . . Utility 11 | . . . . . 2 . 2 1 1 1 1 1 . . 2 Weapon . | . . . . . . . . . . . . . . . . Parts Attached 101 | 7 12 . . 1 29 3 8 7 5 8 5 2 . 1 13 Power 12 | 1 4 . . . 4 1 . 1 . . . . . . 1 Engine 6 | 1 3 . . . . 1 . 1 . . . . . . . Core 5 | . 1 . . . 4 . . . . . . . . . . Reactor 1 | . . . . . . . . . . . . . . . 1 Propulsion 26 | 2 2 . . . 8 1 4 1 2 2 1 1 . 1 1 Treads 8 | . 2 . . . 5 1 . . . . . . . . . Leg 6 | 2 . . . . 3 . . . . . . . . . 1 Wheel . | . . . . . . . . . . . . . . . . Hover . | . . . . . . . . . . . . . . . . Flight 12 | . . . . . . . 4 1 2 2 1 1 . 1 . Utility 44 | 2 1 . . 1 10 . 4 4 3 6 4 1 . . 8 Device 18 | 2 1 . . 1 5 . 1 1 1 3 1 1 . . 1 Storage . | . . . . . . . . . . . . . . . . Processor 6 | . . . . . 2 . . 1 . 1 . . . . 2 Hackware 10 | . . . . . 1 . . 1 1 1 3 . . . 3 Protection 10 | . . . . . 2 . 3 1 1 1 . . . . 2 Artifact . | . . . . . . . . . . . . . . . . Weapon 19 | 2 5 . . . 7 1 . 1 . . . . . . 3 Energy Gun 7 | 1 3 . . . 3 . . . . . . . . . . Energy Cannon 1 | . . . . . . . . . . . . . . . 1 Ballistic Gun 6 | 1 . . . . 3 1 . . . . . . . . 1 Ballistic Cannon . | . . . . . . . . . . . . . . . . Launcher 2 | . 2 . . . . . . . . . . . . . . Special Weapon . | . . . . . . . . . . . . . . . . Impact Weapon 1 | . . . . . 1 . . . . . . . . . . Slashing Weapon 1 | . . . . . . . . 1 . . . . . . . Piercing Weapon . | . . . . . . . . . . . . . . . . Special Melee Weapon 1 | . . . . . . . . . . . . . . . 1 Unidentified Prototypes 7 | . 2 . . 1 1 . . 1 . . . 1 . . 1 Corrupted Parts 1 | . . . . . . . . . . . . . . 1 . System Corruption 3 | . . . . . . . . . . . . . . 3 . Parts Lost 28 | . . . . . 5 7 . . . . . . 2 5 9 Power 4 | . . . . . 1 1 . . . . . . 1 . 1 Propulsion 12 | . . . . . 2 4 . . . . . . . 1 5 Utility 10 | . . . . . 2 1 . . . . . . 1 3 3 Weapon 2 | . . . . . . 1 . . . . . . . 1 . Highest Loss Streak 7 | . . . . . 2 4 . . . . . . 2 7 7 To Critical Strikes . | . . . . . . . . . . . . . . . . Average Backups 4 | 1 4 5 5 5 4 5 3 4 4 4 4 4 4 3 3 Power . | . . . . . . . . . . . . . . . . Propulsion 1 | 1 2 2 2 2 3 4 1 . . . . . 1 1 . Utility 1 | . . . . . . . 1 4 3 3 4 4 3 2 3 Weapon 1 | . 2 3 3 2 1 1 . . . . . . . . . Tool/Special . | . . . . . . . . . . . . . . . . Unused Backups 10 | . 2 . . 1 . . . 2 . 2 1 . . . 2 Power 1 | . . . . . . . . . . . . . . . 1 Propulsion 1 | . 1 . . . . . . . . . . . . . . Utility 6 | . 1 . . . . . . 2 . 1 1 . . . 1 Weapon 2 | . . . . 1 . . . . . 1 . . . . . Tool/Special . | . . . . . . . . . . . . . . . . Average Slot Usage (%) 93 | . 99 100 100 99 96 79 64 92 94 93 94 87 90 81 88 Engine 1 | . 7 . . . . . 2 6 . . . . . . . Core 8 | . 6 14 14 14 8 3 . . 10 10 9 8 8 4 3 Treads 15 | . 25 28 28 28 23 22 . . . . . . . . . Leg 3 | . 2 . . . 9 . . . . . . . . . 3 Flight 8 | . . . . . . . 17 26 24 26 28 26 26 26 21 Device 20 | . 28 28 28 27 26 17 7 5 4 12 12 14 16 15 15 Processor 3 | . . . . . 3 9 7 11 5 5 4 4 4 4 2 Hackware 7 | . . . . . . 9 7 7 16 20 24 21 21 19 25 Protection 4 | . . . . . 4 . 8 20 17 7 4 4 4 2 7 Energy Gun 7 | . 21 28 28 27 3 . . . . . . . . . . Ballistic Gun 4 | . 6 . . . 11 4 2 . . . . . . . 2 Launcher 2 | . . . . . 1 8 2 6 5 5 4 4 4 2 . Slashing Weapon 1 | . . . . . . . . 5 5 5 4 4 4 4 4 Peak Build Rating 129 | 9 13 11 11 17 27 25 29 42 70 89 100 109 111 103 129 Average Rating 38 | 7 10 11 11 15 23 20 19 37 65 82 97 101 109 97 117 On Entrance 45 | . 9 11 11 11 17 25 14 29 42 69 89 100 109 103 89 Avg Prop Armor Cover (%) 5 | . . . . . 4 . 11 . . . 2 . 7 2 9 Naked Turns . | . . . . . . . . . . . . . . . . Heaviest Build 41 | 7 14 11 11 18 25 13 14 18 23 24 22 26 26 21 41 Greatest Support 80 | 20 40 40 40 40 80 80 18 18 29 41 48 48 52 41 44 Greatest Overweight (x) 4 | . . . . . 1 4 1 . . 1 . . 1 . 4 Average Overweight (x) . | . . . . . . . . . . . . . . . . Largest Inventory Capacity 5 | 5 5 5 5 5 5 5 5 5 5 5 5 5 5 5 5 Average Capacity 5 | 5 5 5 5 5 5 5 5 5 5 5 5 5 5 5 5 Most Carried 5 | 3 5 5 5 5 5 5 5 5 5 5 5 5 5 4 5 Average Carried 4 | 1 4 5 5 4 4 5 3 4 4 4 4 4 4 3 3 Final Capacity 5 | 5 5 5 5 5 5 5 5 5 5 5 5 5 5 5 5 Final Carried 5 | 3 5 5 5 5 5 5 4 5 5 5 5 5 4 2 2 Class Distribution -------------------- 22% | Hacker-Sprinter 21% | Mutant 15% | Scavenger-Mutant 13% | Skirmisher 12% | Scavenger-Skirmisher 5% | Infiltrator-Mutant 5% | Wizard-Sprinter 3% | Sprinter Dominant Class ---------------- Mutant | -10/Materials Mutant | -10/Mines Mutant | -10/Exiles Skirmisher | -9/Mines Scavenger-Skirmisher | -8/Materials Infiltrator-Mutant | -8/Garrison Mutant | -7/Factory Sprinter | -6/Factory Hacker-Sprinter | -5/Factory Hacker-Sprinter | -4/Factory Hacker-Sprinter | -3/Research Hacker-Sprinter | -2/Research Hacker-Sprinter | -2/DSF Hacker-Sprinter | -2/Garrison Wizard-Sprinter | -1/Access Resources | -11 -10 -10 -10 -9 -8 -8 -7 -6 -5 -4 -3 -2 -2 -2 -1 ----------- Run | Yrd Mat Min Exi Min Mat Gar Fac Fac Fac Fac Res Res DSF Gar Acc Matter Collected 2197 | 288 220 . . 63 605 163 318 135 70 100 110 . . . 125 Remotely . | . . . . . . . . . . . . . . . . Salvage Created 2564 | 204 325 . . 132 1052 207 207 179 158 40 30 . . . 30 Parts 140 | 11 22 . . 10 53 12 3 13 7 . 3 . . . 6 Haulers Intercepted 3 | . . . . . 2 . . 1 . . . . . . . Recyclers Shooed 7 | 1 . . . 3 1 . 1 1 . . . . . . . Parts Field Recycled . | . . . . . . . . . . . . . . . . Retrieved Matter . | . . . . . . . . . . . . . . . . Parts Self-Destructed . | . . . . . . . . . . . . . . . . Prevented . | . . . . . . . . . . . . . . . . Parts Restored . | . . . . . . . . . . . . . . . . Kills | -11 -10 -10 -10 -9 -8 -8 -7 -6 -5 -4 -3 -2 -2 -2 -1 ------- Run | Yrd Mat Min Exi Min Mat Gar Fac Fac Fac Fac Res Res DSF Gar Acc Combat Hostiles Destroyed 45 | . 11 . . 3 20 11 . . . . . . . . . Guns 20 | . 6 . . . 13 1 . . . . . . . . . AOE 22 | . 5 . . 3 7 7 . . . . . . . . . Classes Destroyed 12 | 3 3 . . 1 5 . . . . . . . . . . Worker 2 | 1 . . . . . . 1 . . . . . . . . Builder 7 | . . . . 1 2 . 4 . . . . . . . . Tunneler 5 | 4 . . . 1 . . . . . . . . . . . Hauler 3 | . . . . . 2 . . 1 . . . . . . . Recycler 5 | 1 1 . . 1 . . 2 . . . . . . . . Operator 7 | . . . . . 2 . . 2 1 . 1 . . . 1 Watcher 8 | . 1 . . . 1 . . 1 4 1 . . . . . Swarmer 13 | . 6 . . 3 . 4 . . . . . . . . . Grunt 21 | . 5 . . . 11 5 . . . . . . . . . Duelist 1 | . . . . . 1 . . . . . . . . . . Sentry 8 | . . . . . 7 1 . . . . . . . . . Hunter 2 | . . . . . 1 1 . . . . . . . . . Best Kill Streak 5 | 3 4 . . 3 5 3 5 2 2 1 1 . . . 1 Combat Bots Only 3 | . 3 . . 3 3 3 . . . . . . . . . Max Kills in Single Turn 3 | 1 2 . . 3 2 2 1 1 1 1 1 . . . 1 Gunslinging . | . . . . . . . . . . . . . . . . Exploded 3 | . 2 . . 3 2 2 . . . . . . . . . Melee . | . . . . . . . . . . . . . . . . Uniques/NPCs Destroyed . | . . . . . . . . . . . . . . . . Combat | -11 -10 -10 -10 -9 -8 -8 -7 -6 -5 -4 -3 -2 -2 -2 -1 -------- Run | Yrd Mat Min Exi Min Mat Gar Fac Fac Fac Fac Res Res DSF Gar Acc Hostile Shots Fired 376 | . 32 . . 8 111 83 . . . 26 3 1 8 28 76 Missed 143 | . 8 . . 3 36 23 . . . 16 2 1 6 11 37 Hits 233 | . 24 . . 5 75 60 . . . 10 1 . 2 17 39 Melee 3 | . . . . . 2 . . . . . . . . 1 . Projectile 230 | . 24 . . 5 73 60 . . . 10 1 . 2 16 39 AOE 9 | . . . . 4 . . . . . . . . 2 2 1 Critical Strikes 13 | . . . . . 7 3 . . . 1 . . . 1 1 Actively Blocked 3 | . . . . . . . . . . 1 . . . 1 1 Damage Taken 4684 | . 270 . . 123 1261 919 . 55 . 301 22 . 276 532 925 Core 842 | . 69 . . 7 271 218 . . . 118 . . . 79 80 Absorbed by Shields 50 | . . . . . . 50 . . . . . . . . . Redirected to Shielding 118 | . . . . . . . . . . 14 . . . . 104 Regen/Repaired (Parts) 140 | . . . . . 111 . 29 . . . . . . . . Core Remaining (%) 85 | 100 . . . 69 . 11 100 100 100 89 100 . . 94 95 Volleys Fired 174 | 18 25 . . 9 78 34 . . . 2 . . . . 8 Largest 2 | 2 2 . . 2 2 2 . . . 1 . . . . 1 Hottest 113 | 60 100 . . 100 113 55 . . . 30 . . . . 88 Shots Fired 284 | 36 42 . . 16 145 35 . . . 2 . . . . 8 Gun 244 | 36 37 . . 14 131 24 . . . . . . . . 2 Cannon 6 | . . . . . . . . . . . . . . . 6 Launcher 34 | . 5 . . 2 14 11 . . . 2 . . . . . Special . | . . . . . . . . . . . . . . . . Kinetic 152 | 18 13 . . . 95 24 . . . . . . . . 2 Thermal 92 | 18 24 . . 14 36 . . . . . . . . . . Explosive 34 | . 5 . . 2 14 11 . . . 2 . . . . . Electromagnetic 6 | . . . . . . . . . . . . . . . 6 Robot Hit Streak 17 | 7 17 . . 5 8 12 . . . . . . . . 4 Robot Miss Streak 4 | 3 3 . . 2 4 2 . . . . . . . . 1 Penetration Max 1 | . . . . . 1 . . . . . . . . . . Secondary Targets . | . . . . . . . . . . . . . . . . Shots Hit Robots 226 | 21 28 . . 11 92 28 9 8 11 6 3 . . . 9 Core Hits 127 | 9 21 . . 8 54 19 2 4 5 2 2 . . . 1 Critical Kills . | . . . . . . . . . . . . . . . . Critical Parts Destroyed 4 | . . . . . 1 1 2 . . . . . . . . Critical Strikes 23 | . 5 . . 4 5 1 2 1 1 3 1 . . . . Burn 13 | . 5 . . 4 4 . . . . . . . . . . Destroy 1 | . . . . . 1 . . . . . . . . . . Smash 3 | . . . . . . 1 2 . . . . . . . . Sever 6 | . . . . . . . . 1 1 3 1 . . . . Melee Attacks 98 | . . . . . 2 7 13 10 17 24 9 . . 4 12 Impact 22 | . . . . . 2 7 13 . . . . . . . . Slashing 76 | . . . . . . . . 10 17 24 9 . . 4 12 Piercing . | . . . . . . . . . . . . . . . . Sneak Attacks 9 | . . . . . . . 7 1 . . . . . . 1 Combat Hostiles . | . . . . . . . . . . . . . . . . Follow-up Attacks . | . . . . . . . . . . . . . . . . Damage Inflicted 6119 | 177 623 . . 276 2231 1071 432 351 410 237 127 . . . 184 Guns 2445 | 177 304 . . 124 1561 279 . . . . . . . . . Cannons 37 | . . . . . . . . . . . . . . . 37 Explosions 1776 | . 319 . . 138 649 670 . . . . . . . . . Melee 1811 | . . . . . . 107 432 351 410 237 127 . . . 147 Ramming 50 | . . . . 14 21 15 . . . . . . . . . Kinetic 1615 | 66 77 . . . 1193 279 . . . . . . . . . Thermal 830 | 111 227 . . 124 368 . . . . . . . . . . Explosive 1776 | . 319 . . 138 649 670 . . . . . . . . . Electromagnetic 37 | . . . . . . . . . . . . . . . 37 Impact 539 | . . . . . . 107 432 . . . . . . . . Slashing 1272 | . . . . . . . . 351 410 237 127 . . . 147 Piercing . | . . . . . . . . . . . . . . . . Highest Corruption 6 | . . . . . . . . . . 2 . . . 4 6 Average Corruption 2 | . . . . . . . . . . 1 . . . 1 2 Corruption Purged . | . . . . . . . . . . . . . . . . Corruption Blocked . | . . . . . . . . . . . . . . . . Effects 6 | . . . . . . . . . . . . . . 1 5 Message Errors 1 | . . . . . . . . . . . . . . . 1 Matter Fused 1 | . . . . . . . . . . . . . . . 1 Heat Flow Errors 1 | . . . . . . . . . . . . . . . 1 Energy Discharges 1 | . . . . . . . . . . . . . . 1 . Data Loss (minor) 1 | . . . . . . . . . . . . . . . 1 Data Loss (major) 1 | . . . . . . . . . . . . . . . 1 Overload Shots . | . . . . . . . . . . . . . . . . Overflow Damage 362 | . . . . . 19 52 211 54 26 . . . . . . Projectiles . | . . . . . . . . . . . . . . . . Explosions 19 | . . . . . 19 . . . . . . . . . . Melee 343 | . . . . . . 52 211 54 26 . . . . . . Knockbacks 5 | . . . . . . 2 3 . . . . . . . . Impact 5 | . . . . . . 2 3 . . . . . . . . Kinetic . | . . . . . . . . . . . . . . . . Secondary . | . . . . . . . . . . . . . . . . Self-Inflicted Damage 310 | . 42 . . 20 143 60 . . . 45 . . . . . Shots 11 | . 2 . . 1 4 3 . . . 1 . . . . . Rammed 18 | . . . . 1 9 8 . . . . . . . . . Targets Rammed 19 | . . . . 2 9 8 . . . . . . . . . Kicked . | . . . . . . . . . . . . . . . . Crushed 1 | . . . . 1 . . . . . . . . . . . Highest Temperature 575 | 40 575 . . 90 144 16 . . 5 29 96 317 5 . 126 Average Temperature 47 | 18 136 . . 44 30 5 . . 4 11 38 24 5 . 55 Received Heat Transfer 974 | . 66 . . . 558 242 . . . . . . . 72 36 Effects 4 | . 4 . . . . . . . . . . . . . . Interference 3 | . 3 . . . . . . . . . . . . . . Damage (minor) 1 | . 1 . . . . . . . . . . . . . . Siege Activations . | . . . . . . . . . . . . . . . . Martial Activations . | . . . . . . . . . . . . . . . . Shielding Activations . | . . . . . . . . . . . . . . . . Robots Disrupted . | . . . . . . . . . . . . . . . . Combat Hostiles . | . . . . . . . . . . . . . . . . Robots Corrupted 6 | . . . . . . 3 3 . . . . . . . . Combat Hostiles 3 | . . . . . . 3 . . . . . . . . . Parts Fried 9 | . . . . . . 1 8 . . . . . . . . Impact Corruptions 11 | . . . . . . 3 8 . . . . . . . . Robots Melted . | . . . . . . . . . . . . . . . . Combat Hostiles . | . . . . . . . . . . . . . . . . Parts Melted 8 | . 5 . . 2 1 . . . . . . . . . . Heat Transferred 2929 | 250 940 . . 666 1073 . . . . . . . . . . Parts Sabotaged . | . . . . . . . . . . . . . . . . Parts Stolen . | . . . . . . . . . . . . . . . . Parts Stripped . | . . . . . . . . . . . . . . . . Power Chain Reactions . | . . . . . . . . . . . . . . . . Alert | -11 -10 -10 -10 -9 -8 -8 -7 -6 -5 -4 -3 -2 -2 -2 -1 ------- Run | Yrd Mat Min Exi Min Mat Gar Fac Fac Fac Fac Res Res DSF Gar Acc Maximum Alert Level 2 | . . . . . 1 2 1 . . . . . . . . Low Security (%) 89 | 100 100 100 . 100 99 15 32 100 100 100 100 100 100 100 100 Level 1 6 | . . . . . . 41 67 . . . . . . . . Level 2 4 | . . . . . . 42 . . . . . . . . . Level 3 . | . . . . . . . . . . . . . . . . Level 4 . | . . . . . . . . . . . . . . . . Level 5 . | . . . . . . . . . . . . . . . . High Security . | . . . . . . . . . . . . . . . . Max Security . | . . . . . . . . . . . . . . . . Peak Influence 496 | 15 175 . . 85 211 496 260 92 58 108 70 60 45 58 45 Initial 260 | . 3 . . . . 135 260 68 30 . . 34 45 18 10 Average 66 | 2 61 . . 8 40 334 203 49 20 24 13 25 43 27 6 Influence Increases 2723 | 30 382 . . 100 758 431 51 155 146 246 183 90 . 50 101 Destroy 0b10 Robot/C 940 | . 220 . . 60 400 220 . 40 . . . . . . . Destroy 0b10 Robot/NC 190 | 30 10 . . 15 35 . 35 25 25 5 5 . . . 5 Destroy Leader 204 | . 42 . . 10 126 10 . 6 8 2 . . . . . Successful Hack 309 | . 32 . . . 25 26 . 69 53 41 18 30 . . 15 Disable Machine 150 | . 15 . . . 30 . . 15 15 60 15 . . . . Anti-Garrison Action 150 | . . . . . . 100 . . . . . . . 50 . Destroy Structure 345 | . 33 . . 15 97 75 1 . . 108 10 . . . 6 Partial Spotted 150 | . . . . . . . . . 45 15 60 . . . 30 Lose Combat Pursuer 285 | . 30 . . . 45 . 15 . . 15 75 60 . . 45 Influence Decreases 2723 | 25 387 . . 100 549 144 406 233 209 246 121 92 35 57 119 Entered New Map 476 | . 2 . . . . 74 236 73 33 . . 28 15 7 8 Time Decay 2057 | 25 385 . . 100 512 . 170 160 176 246 121 64 . . 98 Lost Part 190 | . . . . . 37 70 . . . . . . 20 50 13 Squads Dispatched 27 | . 1 . . . 7 . 4 . 1 5 4 . 1 . 4 Investigation 9 | . 1 . . . 1 . 1 . . 4 2 . . . . Extermination 8 | . . . . . . . 2 . 1 1 2 . . . 2 Reinforcement 5 | . . . . . 2 . . . . . . . 1 . 2 Assault . | . . . . . . . . . . . . . . . . Garrison 5 | . . . . . 4 . 1 . . . . . . . . Intercept . | . . . . . . . . . . . . . . . . Searches Triggered . | . . . . . . . . . . . . . . . . Construction Impeded . | . . . . . . . . . . . . . . . . Haulers Reinforced . | . . . . . . . . . . . . . . . . Active Scanning Responses . | . . . . . . . . . . . . . . . . Cargo Convoy Interrupts . | . . . . . . . . . . . . . . . . Stealth | -11 -10 -10 -10 -9 -8 -8 -7 -6 -5 -4 -3 -2 -2 -2 -1 --------- Run | Yrd Mat Min Exi Min Mat Gar Fac Fac Fac Fac Res Res DSF Gar Acc Distress Signals 12 | . 1 . . . 3 . . . . 5 . . . . 3 Communications Jammed 8 | . . . . . 5 . . . . 3 . . . . . Distress Signals 7 | . . . . . 4 . . . . 3 . . . . . Times Spotted 142 | . 15 . . 5 33 9 2 5 6 25 11 1 4 10 16 Peak Tracking Total 11 | . 3 . . 3 5 4 1 2 2 6 7 4 4 11 8 Tactical Retreats 22 | . 1 . . 2 3 . 1 . . 8 2 1 . . 4 ECM-based Alert Blocks 26 | . . . . . . . . . . 16 . . . . 10 Traps | -11 -10 -10 -10 -9 -8 -8 -7 -6 -5 -4 -3 -2 -2 -2 -1 ------- Run | Yrd Mat Min Exi Min Mat Gar Fac Fac Fac Fac Res Res DSF Gar Acc Traps Triggered 11 | . 1 . . . . 1 . 1 2 2 . 1 1 1 1 Indirectly . | . . . . . . . . . . . . . . . . Trap Hack Attempts . | . . . . . . . . . . . . . . . . Triggered . | . . . . . . . . . . . . . . . . Disarmed . | . . . . . . . . . . . . . . . . Reprogrammed . | . . . . . . . . . . . . . . . . Reused . | . . . . . . . . . . . . . . . . Traps Extracted . | . . . . . . . . . . . . . . . . Installed . | . . . . . . . . . . . . . . . . Triggered . | . . . . . . . . . . . . . . . . Machines | -11 -10 -10 -10 -9 -8 -8 -7 -6 -5 -4 -3 -2 -2 -2 -1 ---------- Run | Yrd Mat Min Exi Min Mat Gar Fac Fac Fac Fac Res Res DSF Gar Acc Machines Disabled 13 | . 1 . . . 2 2 . 1 1 4 1 . . 1 . Max in Single Turn 4 | . 1 . . . 1 1 . 1 1 4 1 . . 1 . Garrison Access 7 | . . . . . . . . 1 1 2 1 1 . . 1 Garrison Relay 3 | . . . . . . 2 . . . . . . . 1 . Machines Repaired . | . . . . . . . . . . . . . . . . Machines Dismantled . | . . . . . . . . . . . . . . . . Machines Sabotaged . | . . . . . . . . . . . . . . . . Overloaded Fab Kills . | . . . . . . . . . . . . . . . . Hacking | -11 -10 -10 -10 -9 -8 -8 -7 -6 -5 -4 -3 -2 -2 -2 -1 --------- Run | Yrd Mat Min Exi Min Mat Gar Fac Fac Fac Fac Res Res DSF Gar Acc Machines Accessed 81 | . 8 . 2 1 11 2 6 8 7 11 13 5 . . 7 Terminals 51 | . 8 . . . 7 2 4 3 3 5 9 4 . . 6 Fabricators 6 | . . . . . . . 1 1 . 3 1 . . . . Repair Stations 4 | . . . . . 2 . 1 . 1 . . . . . . Recycling Units 2 | . . . . . . . . 1 . . 1 . . . . Scanalyzers 7 | . . . . . 1 . . 2 2 1 1 . . . . Garrison Access 8 | . . . . . 1 . . 1 1 2 1 1 . . 1 Total Hacks 229 | . 27 . 2 1 38 4 13 17 17 37 47 11 . . 15 Successful 133 | . 15 . 2 1 17 2 7 9 11 24 32 6 . . 7 Failed 92 | . 11 . . . 20 2 6 7 6 12 15 5 . . 8 Catastrophic 10 | . 1 . . . 2 . . 1 1 2 1 1 . . 1 Database Lockouts 4 | . 1 . . . 1 . . 1 . 1 . . . . . Manual 109 | . 21 . 1 . 19 . 7 4 7 13 24 8 . . 5 Terminals 170 | . 27 . . . 30 4 9 7 9 24 36 10 . . 14 Fabricators 14 | . . . . . . . 1 3 . 7 3 . . . . Repair Stations 7 | . . . . . 3 . 3 . 1 . . . . . . Recycling Units 4 | . . . . . . . . 2 . . 2 . . . . Scanalyzers 23 | . . . . . 4 . . 4 6 4 5 . . . . Garrison Access 8 | . . . . . 1 . . 1 1 2 1 1 . . 1 Terminal Hacks 64 | . 8 . 2 1 6 2 2 3 2 11 19 3 . . 5 Record 10 | . . . 1 . . . . . . 2 6 1 . . . Part Schematic 1 | . . . . . . . . . 1 . . . . . . Robot Analysis 6 | . 3 . . . 1 . . . 1 1 . . . . . Prototype ID Bank 1 | . . . . . 1 . . . . . . . . . . Open Door 2 | . . . . 1 . . . . . . . . . . 1 Open DSF 4 | . . . . . . . 1 . . 1 1 1 . . . Level Access Points 3 | . . . . . . . . . . 1 1 1 . . . Branch Access Points 1 | . . . . . . . . . . 1 . . . . . Emergency Access Points 3 | . 1 . . . . 1 1 . . . . . . . . Terminal Index 3 | . . . . . . . . . . 1 1 . . . 1 Fabricator Index 1 | . . . . . . . . . . 1 . . . . . Garrison Index 1 | . . . . . . . . . . . 1 . . . . Locate Traps 6 | . . . . . 1 . . 1 . . 3 . . . 1 Surveillance Status 1 | . 1 . . . . . . . . . . . . . . Patrol Status 2 | . . . . . . . . . . 1 1 . . . . Recall Investigation 2 | . . . . . . . . . . 1 1 . . . . Recall Extermination 3 | . . . . . . . . . . . 2 . . . 1 Hauler Manifests 3 | . 1 . . . 2 . . . . . . . . . . Registered Components 4 | . 1 . . . 1 . . 1 . 1 . . . . . Registered Prototypes 1 | . . . . . . . . 1 . . . . . . . Zone Layout 4 | . 1 . . . . . . . . . 2 . . . 1 Security Stations 1 | . . . . . . 1 . . . . . . . . . Proto ID Catalog 1 | . . . 1 . . . . . . . . . . . . Fabricator Hacks 11 | . . . . . . . 1 1 . 6 3 . . . . Network Status 3 | . . . . . . . 1 1 . . 1 . . . . Load Schematic 4 | . . . . . . . . . . 3 1 . . . . Build 4 | . . . . . . . . . . 3 1 . . . . Repair Station Hacks 6 | . . . . . 2 . 3 . 1 . . . . . . Scan Component 2 | . . . . . 1 . 1 . . . . . . . . Repair 2 | . . . . . 1 . 1 . . . . . . . . Refit 2 | . . . . . . . 1 . 1 . . . . . . Recycling Unit Hacks 1 | . . . . . . . . . . . 1 . . . . Retrieve Components 1 | . . . . . . . . . . . 1 . . . . Scanalyzer 17 | . . . . . 3 . . 1 6 2 5 . . . . Insert Component 6 | . . . . . 1 . . . 2 2 1 . . . . Analyze 4 | . . . . . 1 . . . 2 . 1 . . . . Retrieve Study 7 | . . . . . 1 . . 1 2 . 3 . . . . Garrison Access Hacks 8 | . . . . . 1 . . 1 1 2 1 1 . . 1 Unlock Access 1 | . . . . . 1 . . . . . . . . . . Seal Access 7 | . . . . . . . . 1 1 2 1 1 . . 1 Unauthorized Hacks 26 | . 7 . . . 5 . 1 3 1 3 3 2 . . 1 Terminals 25 | . 7 . . . 5 . 1 2 1 3 3 2 . . 1 Assimilate 3 | . . . . . . . . 1 1 . 1 . . . . Botnet 19 | . 6 . . . 4 . 1 1 . 3 1 2 . . 1 Operators 3 | . 1 . . . 1 . . . . . 1 . . . . Fabricators 1 | . . . . . . . . 1 . . . . . . . Liberate 1 | . . . . . . . . 1 . . . . . . . Repair Stations . | . . . . . . . . . . . . . . . . Recycling Units . | . . . . . . . . . . . . . . . . Scanalyzers . | . . . . . . . . . . . . . . . . Garrison Access . | . . . . . . . . . . . . . . . . Data Cores Recovered 1 | . . . . . . . . 1 . . . . . . . Used . | . . . . . . . . . . . . . . . . Hacking Detections 66 | . 8 . . . 10 2 5 7 6 8 11 3 . . 6 Full Trace Events 8 | . . . . . 1 . 1 . . 4 2 . . . . Feedback Events . | . . . . . . . . . . . . . . . . Feedback Blocked . | . . . . . . . . . . . . . . . . Robot Schematics Acquired . | . . . . . . . . . . . . . . . . Robots Built . | . . . . . . . . . . . . . . . . Authchips . | . . . . . . . . . . . . . . . . Time . | . . . . . . . . . . . . . . . . Total Robot Build Rating . | . . . . . . . . . . . . . . . . Part Schematics Acquired 5 | . . . . . 1 . . . 3 . 1 . . . . Parts Built 4 | . . . . . . . . . . 3 1 . . . . Authchips . | . . . . . . . . . . . . . . . . Time 323 | . . . . . . . . . . 276 47 . . . . Total Part Build Rating 19 | . . . . . . . . . . 14 5 . . . . Part Studies Acquired 7 | . . . . . 1 . . 1 2 . 3 . . . . Parts Repaired 2 | . . . . . 1 . 1 . . . . . . . . Time 58 | . . . . . 26 . 32 . . . . . . . . Parts Recycled . | . . . . . . . . . . . . . . . . Recycled Matter . | . . . . . . . . . . . . . . . . Retrieved Matter . | . . . . . . . . . . . . . . . . Retrieved Components . | . . . . . . . . . . . . . . . . Parts Scanalyzed 4 | . . . . . 1 . . . 2 . 1 . . . . Part Schematics Acquired 4 | . . . . . 1 . . . 2 . 1 . . . . Parts Damaged . | . . . . . . . . . . . . . . . . Bothacking | -11 -10 -10 -10 -9 -8 -8 -7 -6 -5 -4 -3 -2 -2 -2 -1 ------------ Run | Yrd Mat Min Exi Min Mat Gar Fac Fac Fac Fac Res Res DSF Gar Acc Used RIF Installer 1 | . . . . . . 1 . . . . . . . . . Robots Hacked . | . . . . . . . . . . . . . . . . Non-combat . | . . . . . . . . . . . . . . . . Combat . | . . . . . . . . . . . . . . . . Robot Hacks Applied . | . . . . . . . . . . . . . . . . Relay Couplers Released 13 | . . . . . . 9 . . . . . . . 4 . Machine Destruction 13 | . . . . . . 9 . . . . . . . 4 . Fabnet Peak Effective % . | . . . . . . . . . . . . . . . . Robots Rewired . | . . . . . . . . . . . . . . . . Allies Hacked 1 | . . . . . . . . 1 . . . . . . . Hacks Repelled . | . . . . . . . . . . . . . . . . Allies | -11 -10 -10 -10 -9 -8 -8 -7 -6 -5 -4 -3 -2 -2 -2 -1 -------- Run | Yrd Mat Min Exi Min Mat Gar Fac Fac Fac Fac Res Res DSF Gar Acc Total Allies 5 | . . 1 . . . . . 3 . . 1 . . . . Largest Group 3 | . . 1 1 . . . . 3 . . 1 . . . . Highest-Rated Group 94 | . . 31 31 . . . . 94 . . 10 . . . . Highest-Rated Ally 37 | . . 31 31 . . . . 37 . . 10 . . . . Total Orders 1 | . . . . 1 . . . . . . . . . . . RETURN 1 | . . . . 1 . . . . . . . . . . . Ally Attacks 10 | . . . . . . . . 10 . . . . . . . Total Damage 266 | . . . . . . . . 266 . . . . . . . Kills 3 | . . . . . . . . 3 . . . . . . . Allies Corrupted . | . . . . . . . . . . . . . . . . Allies Melted . | . . . . . . . . . . . . . . . . Intel | -11 -10 -10 -10 -9 -8 -8 -7 -6 -5 -4 -3 -2 -2 -2 -1 ------- Run | Yrd Mat Min Exi Min Mat Gar Fac Fac Fac Fac Res Res DSF Gar Acc Active Infowar (turns) 8350 | 99 1058 260 348 941 2665 798 3 . 435 923 480 151 46 . 143 Terrain 4245 | 99 1058 260 348 941 1539 . . . . . . . . . . Structural 3463 | . . . . . 2665 798 . . . . . . . . . Seismic 1968 | 50 1058 260 348 252 . . . . . . . . . . . Jamming 3124 | . . . . . 732 354 3 . 435 923 480 151 46 . . ECM 1159 | . . . . . . . . . . 670 346 . . . 143 Robot Analysis Total 6 | . 3 . . . 1 . . . 1 1 . . . . . Derelict Logs Recovered 1 | . . . . 1 . . . . . . . . . . . Drone Launches 6 | . . . . 6 . . . . . . . . . . . Drone Recoveries 6 | . . . . 6 . . . . . . . . . . . Exploration | -11 -10 -10 -10 -9 -8 -8 -7 -6 -5 -4 -3 -2 -2 -2 -1 ------------- Run | Yrd Mat Min Exi Min Mat Gar Fac Fac Fac Fac Res Res DSF Gar Acc Turns Passed 9634 | 136 1058 260 348 941 2672 893 356 335 464 923 480 151 46 61 510 Spaces Moved 11346 | 65 601 163 218 521 1247 389 631 662 1093 2394 1553 370 73 194 1172 Core 126 | 7 . . . . . 21 98 . . . . . . . . Treads 2790 | . 537 163 218 521 983 368 . . . . . . . . . Legs 386 | 58 64 . . . 264 . . . . . . . . . . Wheels . | . . . . . . . . . . . . . . . . Hover . | . . . . . . . . . . . . . . . . Flight 8044 | . . . . . . . 533 662 1093 2394 1553 370 73 194 1172 Fastest Speed 15 | 50 120 160 160 160 120 50 28 27 25 18 22 22 15 22 20 Average Speed 63 | 112 155 160 160 160 152 159 42 27 26 25 24 22 39 25 29 Slowest Speed 305 | 120 160 160 160 160 240 250 100 28 28 93 25 22 105 27 305 Overloaded Moves 58 | . . . . . . . . . . 30 . . 8 . 20 Propulsion Burnouts . | . . . . . . . . . . . . . . . . Robots Hopped 104 | . . . . . . . 1 9 12 28 17 15 . 8 14 Potential Cave-ins . | . . . . . . . . . . . . . . . . Cave-ins Triggered . | . . . . . . . . . . . . . . . . Exploration Rate (%) 42 | 4 92 37 60 82 79 59 19 18 25 32 40 8 63 36 20 Regions Visited 15 Branch Regions 3 Pre-discovered Areas 2 | . . . 1 1 . . . . . . . . . . . Known Exits Taken 7 | . . . . . 1 . 1 1 1 1 1 1 . . . Unknown Exits Taken 5 | 1 1 1 1 1 . . . . . . . . . . . Scrap Searched 2 | . . . . 2 . . . . . . . . . . . Spaces Dug 57 | . 9 . . . 13 . 1 . . 27 5 . . . 2 Terrain Destroyed 288 | . 40 . . 18 112 51 1 . . 59 5 . . . 2 Melee 27 | . . . . . 2 . 1 . . 17 5 . . . 2 Projectile 2 | . . . . . 2 . . . . . . . . . . AOE 259 | . 40 . . 18 108 51 . . . 42 . . . . . Terrain Rammed . | . . . . . . . . . . . . . . . . Walls Destroyed . | . . . . . . . . . . . . . . . . Machines Disabled . | . . . . . . . . . . . . . . . . Actions | -11 -10 -10 -10 -9 -8 -8 -7 -6 -5 -4 -3 -2 -2 -2 -1 --------- Run | Yrd Mat Min Exi Min Mat Gar Fac Fac Fac Fac Res Res DSF Gar Acc Total 13240 | 92 686 162 217 611 1867 612 696 790 1231 2649 1626 423 88 191 1299 Wait 1421 | . 23 . . 72 467 159 36 105 87 232 72 65 11 . 92 Move 11129 | 64 600 162 217 521 1247 388 628 643 1068 2338 1518 340 72 179 1144 Hop 99 | . . . . . . . 1 9 12 27 17 14 . 6 13 Pick Up 39 | 3 7 . . 1 2 . 4 4 5 4 3 . 1 . 5 Fast Attach 75 | 7 9 . . 2 23 3 4 7 3 5 1 1 . . 10 Attach 29 | . 2 . . . 2 . 7 . 3 3 2 1 1 2 6 Detach 14 | . . . . . 2 . 2 2 2 1 1 1 . . 3 Swap 38 | . 5 . . 2 14 4 . 1 . 5 2 1 2 . 2 Drop 73 | . 15 . . 3 21 2 1 9 8 8 1 . 1 . 4 Fire 174 | 18 25 . . 9 78 34 . . . 2 . . . . 8 Melee 98 | . . . . . 2 7 13 10 17 24 9 . . 4 12 Ram . | . . . . . . . . . . . . . . . . Kick . | . . . . . . . . . . . . . . . . Crush 18 | . . . . 1 9 8 . . . . . . . . . Escape Stasis 33 | . . . . . . 7 . . 26 . . . . . . Rewire . | . . . . . . . . . . . . . . . . Trap . | . . . . . . . . . . . . . . . . Miscellaneous . | . . . . . . . . . . . . . . . . Route ------- -11/Scrapyard -10/Materials (discovered 5 exits: [*Mat x3] / [*Min] / [*Sub]) -10/Mines (discovered 2 exits: [*Mat] / *Exi) -10/Exiles (discovered 2 exits: *Min x2) -9/Mines -8/Materials (discovered 3 exits: *Fac x2 / Gar) -8/Garrison (discovered 2 exits: *Fac x2) -7/Factory (discovered 2 exits: *Fac / DSF) -6/Factory -5/Factory -4/Factory (discovered 9 exits: *Res x4 / Upp x2 / Ext x2 / Arm) -3/Research (discovered 5 exits: *Res x3 / *Tes x2) -2/Research (discovered 4 exits: Acc x3 / DSF) -2/DSF -2/Garrison -1/Access To Epsilon Eridani History --------- Turn | Location | Event 3 | -11/Scrapyard | Discovered new exit (range 15) 137 | -11/Scrapyard | Entered Materials 309 | -10/Materials | Build established: Mutant 450 | -10/Materials | Discovered new exit (range 13) 553 | -10/Materials | Central database locked down 566 | -10/Materials | Discovered new exit (range 10) 727 | -10/Materials | Discovered new exit (range 10) 898 | -10/Materials | Discovered new exit (range 15) 955 | -10/Materials | Discovered new exit (range 13) 1195 | -10/Materials | Entered Mines 1200 | -10/Mines | Met a Derelict bent on vengeance 1218 | -10/Mines | Discovered new exit (range 5) 1278 | -10/Mines | Received a Mining Laser from a helpful Derelict 1408 | -10/Mines | Deemed a non-threat by the Exiles lab entrance 1410 | -10/Mines | Discovered new exit (range 5) 1455 | -10/Mines | Entered Exiles 1455 | -10/Exiles | Accompanied by 1 ally 1479 | -10/Exiles | Discovered new exit (range 15) 1495 | -10/Exiles | Met 8R-AWN 1521 | -10/Exiles | Met EX-HEX 1575 | -10/Exiles | Met EX-BIN 1601 | -10/Exiles | Aligned with FarCom system 1603 | -10/Exiles | Given EX-Vault access code 1639 | -10/Exiles | Opened EX-Vault 1679 | -10/Exiles | Warned to stay clear of 0b10 Research branches 1724 | -10/Exiles | Met EX-DEC 1735 | -10/Exiles | Learned location of Zion (-7) 1782 | -10/Exiles | Discovered new exit (range 15) 1803 | -10/Exiles | Entered Mines 2048 | -9/Mines | Found the Drone Emporium 2056 | -9/Mines | Found Prototype Device 2056 | -9/Mines | Identified Splice Drone Bay 2113 | -9/Mines | Build established: Skirmisher 2491 | -9/Mines | Discovered new exit (range 12) 2744 | -9/Mines | Entered Materials 2744 | -8/Materials | Evolved 4 slots: Propulsion x2, Utility x2 3400 | -8/Materials | Build established: Scavenger-Skirmisher 3479 | -8/Materials | Garrison activated, responded to threat 3686 | -8/Materials | Discovered new exit (range 16) 4591 | -8/Materials | Build established: Scavenger-Mutant 4819 | -8/Materials | Central database locked down 4873 | -8/Materials | Discovered new exit (range 5) 4878 | -8/Materials | Identified exit to Factory 5102 | -8/Materials | Repaired Lgt. Treads 5416 | -8/Materials | Identified exit to Garrison 5416 | -8/Materials | Entered Garrison 5476 | -8/Garrison | Triggered checkpoint 5511 | -8/Garrison | Core integrity fell below 50% 5557 | -8/Garrison | Garrison Relay disabled 5652 | -8/Garrison | Triggered checkpoint 5726 | -8/Garrison | Triggered checkpoint 5779 | -8/Garrison | Lost 3 parts (1p2n) 5864 | -8/Garrison | Discovered exit to Factory (range 8) 5883 | -8/Garrison | Learned Factory security intel 5900 | -8/Garrison | Triggered checkpoint 5909 | -8/Garrison | Garrison Relay disabled 6048 | -8/Garrison | Build established: Infiltrator-Mutant 6152 | -8/Garrison | Triggered checkpoint 6204 | -8/Garrison | Core integrity fell below 20% 6255 | -8/Garrison | Lost 4 parts (2n1u1w) 6271 | -8/Garrison | Discovered exit to Factory (range 14) 6285 | -8/Garrison | Installed Relay Interface Framework 6309 | -8/Garrison | Entered Factory 6309 | -7/Factory | Evolved 2 slots: Utility x2 6313 | -7/Factory | Identified exit to DSF 6481 | -7/Factory | Garrison activated, responded to threat 6585 | -7/Factory | Repaired Mni. Grenade Launcher 6621 | -7/Factory | Discovered new exit (range 15) 6624 | -7/Factory | Identified exit to Factory 6665 | -7/Factory | Entered another Factory area 6665 | -6/Factory | Evolved 2 slots: Power x1, Utility x1 6697 | -6/Factory | Central database locked down 6857 | -6/Factory | Build established: Sprinter 6961 | -6/Factory | Discovered new exit (range 5) 6962 | -6/Factory | Identified exit to Factory 7000 | -6/Factory | Entered another Factory area 7000 | -5/Factory | Evolved 2 slots: Propulsion x1, Utility x1 7044 | -5/Factory | Discovered new exit (range 15) 7062 | -5/Factory | Identified exit to Factory 7243 | -5/Factory | Build established: Hacker-Sprinter 7464 | -5/Factory | Entered another Factory area 7464 | -4/Factory | Evolved 2 slots: Propulsion x1, Utility x1 7587 | -4/Factory | Identified exit to DSF 7604 | -4/Factory | Identified exit to Research 7604 | -4/Factory | Identified exit to Upper Caves 7604 | -4/Factory | Identified exit to Extension 7604 | -4/Factory | Identified exit to Armory 7684 | -4/Factory | Central database locked down 7729 | -4/Factory | Fabricated Cld. VTOL Module (x1) 7755 | -4/Factory | Fabricated Imp. Hacking Suite (x1) 8005 | -4/Factory | Fabricated Imp. Hacking Suite? 8387 | -4/Factory | Entered Research 8387 | -3/Research | Evolved 2 slots: Propulsion x1, Utility x1 8405 | -3/Research | Identified exit to DSF 8422 | -3/Research | Identified exit to Research 8462 | -3/Research | Discovered new exit (range 8) 8464 | -3/Research | Identified exit to Testing 8475 | -3/Research | Fabricated Imp. Hacking Suite? 8792 | -3/Research | Discovered exit to Testing (range 11) 8867 | -3/Research | Entered another Research area 8867 | -2/Research | Evolved 2 slots: Propulsion x1, Utility x1 8919 | -2/Research | Identified exit to DSF 8924 | -2/Research | Identified exit to Access 9018 | -2/Research | Entered DSF 9038 | -2/DSF | Discovered new exit (range 12) 9042 | -2/DSF | Identified exit to Garrison 9043 | -2/DSF | Additional patrols routed to DSF 9064 | -2/DSF | Entered Garrison 9078 | -2/Garrison | Triggered checkpoint 9093 | -2/Garrison | Garrison Relay disabled 9113 | -2/Garrison | Spotted B-90 Cyclops 9116 | -2/Garrison | Triggered checkpoint 9118 | -2/Garrison | Triggered checkpoint 9122 | -2/Garrison | Discovered exit to Access (range 9) 9125 | -2/Garrison | Entered Access 9125 | -1/Access | Evolved 2 slots: Utility x2 9152 | -1/Access | Lost 7 parts (1p1n4u1w) 9574 | -1/Access | Build established: Wizard-Sprinter 9581 | -1/Access | Discovered new exit (range 15) 9635 | *** | Escaped! Last Messages --------------- corruption cleaned. 09607_ Imp. Propulsion Shielding destroyed. 09607_ Cld. VTOL Module destroyed. 09609_ ALERT: Potential suspicious activity detected, Programmers report to Access Zone 7D. 09609_ Slug penetrates Wall. 09618_ Imp. Light Armor Plating destroyed. 09621_ Penetrated by Slug. 09621_ Field Propulsion Array+ destroyed. 09623_ Penetrated by Slug. 09624_ Slug penetrates Terminal. 09624_ Dropped Lgt. Quantum Reactor. 09624_ Slug penetrates Wall. 09629_ Xenon Bombardment Thruster+ destroyed. 09632_ Hacking Suite destroyed. 09632_ Adv. Surge Thruster destroyed. 09633_ Slug penetrates Terminal. 09633_ Identified Exp. Heat Sink. [Achievement: Travel Light] Map ----- +----------------------------------------------------+ | # ## # # ???????????????? | | # ## # # ############???????????????? | | # ##* # #####??????????????????????????? | | # ## # #??????????????????????????????? | | #^^## # #????###########???????????????? | | # ## # #????# ???????????????? | | # ## # #????# ???????????????? | | # ## #######????# " ???????????????? | | # ## ############ """???????????????? | | # ## ## # """ ???????????????? | | ###+######[ # " ???????????????? | | # # ???????????????? | | # "" "" # ???????????????? | | ####### # ""T"" # ???????????????? | | #+#######?# + """ # ???????????????? | | #?# # # ???????????????? | | #?# # # ???????????????? | | #?# #####################???????????????? | | #?# *#?????###???????????????????????????? | | #?# h####### #############???????????????? | | #?# """T""" """"???????????????? | | """""#?# Yh"" """ """"?BB????????????? | | """""#?# p """"?BB????????????? | | """""#?# """"???????????????? | | """""#?# "" """"???????????????? | | """""#?# @" """"???????????????? | | """""#?# """"???????????????? | | #?# """"?BB????????????? | | #?# """"?BB????????????? | | ?????# "??????????????????? | | ####??????# ####### ##########??????????????????? | | ??????????# #?????###???????????????????????????? | | ??????????# #???????????????????????????????????? | | ??????????# #???????????????????????????????????? | | ??????????# #???????????????????????????????????? | | ####??????# #???????????????????????????????????? | | #??????# #???????????????????????????????????? | | #??????# #???????????????????????????????????? | | #??????# #???????????????????????????????????? | | #??????# #???????????????????????????????????? | | #??????# #???????????????????????????????????? | | #??????# #???????????????????????????????????? | | ####??????# +???????????????????????????????????? | | ??????????# #???????????????????????????????????? | | ??????????# #???????????????????????????????????? | | ??????????# +???????????????????????????????????? | | ??????????# #???????????????????????????????????? | | ??????????# ????????????????????????????????????? | | ??????????# ????????????????????????????????????? | | ??????????? ????????????????????????????????????? | +----------------------------------------------------+ Best States ------------- Heat Dissipation 52 Coolant Potential 80 Energy Generation 37 Energy Capacity 280 Matter Stores 300 Matter Capacity 300 Sight Range 16 Terrain Scan Range 16 Terrain Scan Density 10 ECM Strength 1 Jamming Range 14 Power Amplification 20 Corruption Containment 8 Armor Coverage 375 Propulsion Shielding 66 Evasion (%) 65 Targeting Accuracy 8 Recoil Reduction 4 Offensive Hacking 56 Defensive Hacking 22 Item Schematics ----------------- Mni. Grenade Launcher | -8/Materials | Scanalyzed Hacking Suite | -5/Factory | Scanalyzed Imp. Hacking Suite | -5/Factory | Hacked Cld. VTOL Module | -5/Factory | Scanalyzed Imp. Medium Armor Plating | -3/Research | Scanalyzed Robot Schematics ------------------ None Fabricated ------------ Cld. VTOL Module | x1 | -4/Factory Imp. Hacking Suite | x1 | -4/Factory Imp. Hacking Suite | x1 | -4/Factory Imp. Hacking Suite | x1 | -3/Research Repaired ---------- Lgt. Treads | 20% | -8/Materials Mni. Grenade Launcher | 42% | -7/Factory Studied --------- Flight Unit | -8/Materials | Hacked Scythe | -6/Factory | Hacked Cesium-ion Thruster | -5/Factory | Hacked Surge Thruster | -5/Factory | Hacked Field Propulsion Array | -3/Research | Hacked Impulse Thruster | -3/Research | Hacked Xenon Bombardment Thruster | -3/Research | Hacked Alien Tech Used ----------------- None Achievements -------------- Release The Drones! Travel Light Challenges ------------ None Game ------ Seed ShrapnelPartitionObliterator Manual? 0 Play Time 02:09:28 Cumulative 49.2 hours Start 2026.01.02 @ 18:45:30 End 2026.01.02 @ 22:56:24 Sessions 5 Manual Loads 0 Difficulty Rogue Special Mode None Game No. 44 Rogue 44 Adventurer 0 Explorer 0 Win Type 0 Total 7 Types 7/0/0/0/0/0/0/0/0/0 Lore% 37 Gallery% 37 Achievement% 35 Wizard Run 0 Options --------- Layout 1 ASCII 0 Keyboard 1 Movement Numpad Keybinds 0 Fullscreen 2 Font 24/Terminus Map View 50x35 Zoom Use 0% Tactical HUD 1 Map Filters NONE Filters NONE Steam 1 RUN: 18eb3d49-43f8-4511-b66c-a9f45f48b57a